fUSD/lending_fUSD_20250211
["ID","MTS","AMOUNT","RATE_DAILY","PERIOD"]
[352702659,1739255453235,-500.0,0.00011369,2]
[352702660,1739255453244,-1389.83,0.00011369,2]
[352702661,1739255453255,-1844.52,0.00011369,2]
[352702662,1739255453266,-500.0,0.00011369,2]
[352702663,1739255453275,-1168.84,0.00011369,2]
[352702664,1739255453286,-821.01,0.00011369,2]
[352702665,1739255453296,-740.84,0.00011369,2]
[352702666,1739255453305,-1195.62,0.00011369,2]
[352702667,1739255453315,-500.0,0.00011369,2]
[352702668,1739255453324,-1732.91,0.00011369,2]
[352702669,1739255453334,-500.0,0.00011369,2]
[352702670,1739255453344,-500.0,0.00011369,2]
[352702671,1739255453352,-1102.15518799,0.00011369,2]
[352702672,1739255453615,-975.53481201,0.00011369,2]
[352702673,1739255453624,-965.91,0.00011369,2]
[352702674,1739255453634,-2204.61,0.00011369,2]
[352702675,1739255453644,-1267.5,0.00011369,2]
[352702676,1739255453653,-1006.35522299,0.00011369,2]
[352702677,1739255453665,-640.71477701,0.00011369,2]
[352702678,1739255453674,-803.13,0.00011369,2]
[352702679,1739255453684,-1667.19,0.00011369,2]
[352702680,1739255453693,-731.55253588,0.00011369,2]
[352702681,1739255453712,-397.30746412,0.00011369,2]
[352702682,1739255453722,-853.77,0.00011369,2]
[352702683,1739255453731,-717.76,0.00011369,2]
[352702684,1739255453740,-1175.38,0.00011369,2]
[352702685,1739255453750,-2011.59,0.00011369,2]
[352702686,1739255453759,-567.04,0.00011369,2]
[352702687,1739255453768,-1885.68032623,0.00011369,2]
[352702688,1739255453788,-52.88967377,0.00011369,2]
[352702689,1739255453797,-393.61579623,0.00011369,2]
[352702690,1739255453808,-1772.45420377,0.00011369,2]
[352702691,1739255453817,-227.54579623,0.00011369,2]
[352702692,1739255453829,-272.45420377,0.00011369,2]
[352702693,1739255453839,-500.0,0.00011369,2]
[352702694,1739255453848,-279.51557285,0.00011369,2]
[352702696,1739255558341,1000.0,0.0002,120]
[352702698,1739255704598,-315.6435,8.836e-05,2]
[352702699,1739255755491,-34552.8268,8.836e-05,2]
[352702700,1739255920863,151.7,8.027e-05,2]
[352702701,1739256087555,1000.0,0.0002,120]
[352702702,1739256106876,1000.0,8e-05,2]
[352702704,1739256149917,1700.0,0.0002,120]
[352702705,1739256173393,-498.4653,8.851e-05,2]
[352702706,1739256173418,-4501.5347,8.973e-05,2]
[352702708,1739256256701,1219.0,0.0002,120]
[352702710,1739256353869,260.0,0.0002,120]
[352702711,1739256391983,-1030.1834,8.851e-05,2]
[352702712,1739256392007,-469.8166,8.973e-05,2]
[352702714,1739256435886,-3639.2296,8.836e-05,2]
[352702715,1739256438846,882.33,8.219e-05,2]
[352702716,1739256487650,-500.0,8.851e-05,2]
[352702717,1739256511388,-501.5347,8.851e-05,2]
[352702718,1739256514740,196.0,0.0002,120]
[352702719,1739256525441,196.0,0.0002,120]
[352702722,1739256632069,-28.6487,8.973e-05,2]
[352702723,1739256632078,-150.0,9e-05,2]
[352702724,1739256632088,-150.0,9.315e-05,2]
[352702725,1739256632098,-216.01293733,9.603e-05,2]
[352702726,1739256632107,-12702.77101592,9.616e-05,2]
[352702727,1739256632116,-888.75,9.617e-05,2]
[352702728,1739256632126,-211.07,9.622e-05,2]
[352702729,1739256632135,-278.79741596,9.685e-05,2]
[352702730,1739256632144,-1000.0,9.685e-05,2]
[352702731,1739256632155,-4493.73,9.721e-05,2]
[352702732,1739256632164,-200.0,9.743e-05,2]
[352702733,1739256632174,-985.27,9.8e-05,2]
[352702734,1739256632183,-1970.54,9.8e-05,2]
[352702735,1739256632400,-943.2,9.837e-05,2]
[352702736,1739256632410,-300.0,9.869e-05,2]
[352702737,1739256632420,-500.0,9.87e-05,2]
[352702738,1739256632429,-150.0,9.87e-05,2]
[352702739,1739256632439,-2356.53,9.918e-05,2]
[352702740,1739256632448,-2000.0,0.00010114,2]
[352702741,1739256632457,-302.44,0.00010137,2]
[352702742,1739256632467,-219.07,0.00010137,2]
[352702743,1739256632476,-250.0,0.00010192,2]
[352702744,1739256632485,-482.97,0.00010195,2]
[352702745,1739256632495,-882.33,0.00010457,2]
[352702746,1739256632505,-1500.0,0.00010494,2]
[352702747,1739256632514,-439.84,0.00010548,2]
[352702748,1739256632523,-439.84,0.00010548,2]
[352702749,1739256632533,-439.84,0.00010548,2]
[352702750,1739256632542,-167.55,0.00010637,2]
[352702751,1739256632551,-152.01,0.00010637,2]
[352702752,1739256632560,-150.0,0.00010684,2]
[352702753,1739256632569,-150.0,0.00010685,2]
[352702754,1739256632579,-150.0,0.00010685,2]
[352702755,1739256632588,-150.0,0.00010685,2]
[352702756,1739256632597,-1970.54,0.00010685,2]
[352702757,1739256632607,-150.0,0.00010685,2]
[352702758,1739256632616,-150.0,0.00010685,2]
[352702759,1739256632625,-150.0,0.00010685,2]
[352702761,1739256632635,-453.34,0.00010822,2]
[352702763,1739256632644,-775.33,0.00010822,2]
[352702765,1739256632655,-775.33,0.00010822,2]
[352702767,1739256632664,-775.33,0.00010822,2]
[352702769,1739256632673,-775.33,0.00010822,2]
[352702771,1739256632683,-775.33,0.00010822,2]
[352702773,1739256632695,-1004.52,0.00010822,2]
[352702775,1739256632705,-150.34,0.00010822,2]
[352702777,1739256632714,-985.77,0.00010822,2]
[352702779,1739256632724,-150.63,0.00010822,2]
[352702781,1739256632733,-985.77,0.00010822,2]
[352702782,1739256632743,-985.77,0.00010822,2]
[352702783,1739256632753,-984.49,0.00010822,2]
[352702784,1739256632766,-211.07,0.00010825,2]
[352702785,1739256632775,-150.0,0.00010825,2]
[352702786,1739256632784,-152.63049863,0.00010825,2]
[352702787,1739256632793,-150.0,0.00010825,2]
[352702788,1739256632802,-1000.0,0.00010896,2]
[352702789,1739256632811,-500.0,0.00010958,2]
[352702790,1739256632822,-500.0,0.00010958,2]
[352702791,1739256632831,-500.0,0.00010958,2]
[352702792,1739256632841,-500.0,0.00010958,2]
[352702793,1739256632850,-500.0,0.00010958,2]
[352702794,1739256632860,-500.0,0.00010958,2]
[352702795,1739256632869,-500.0,0.00010958,2]
[352702796,1739256632879,-500.0,0.00010958,2]
[352702797,1739256632888,-500.0,0.00010958,2]
[352702798,1739256632897,-500.0,0.00010958,2]
[352702799,1739256632908,-500.0,0.00010958,2]
[352702800,1739256632917,-500.0,0.00010958,2]
[352702801,1739256632928,-1044.26,0.00010958,2]
[352702802,1739256632937,-883.66,0.00010958,2]
[352702803,1739256632947,-763.89,0.00010958,2]
[352702804,1739256632956,-500.0,0.00010958,2]
[352702805,1739256632966,-500.0,0.00010958,2]
[352702806,1739256632975,-594.24,0.00010958,2]
[352702807,1739256632985,-896.62,0.00010958,2]
[352702808,1739256632994,-500.0,0.00010958,2]
[352702809,1739256633003,-500.0,0.00010958,7]
[352702810,1739256633012,-500.0,0.00010958,2]
[352702811,1739256633022,-500.0,0.00010958,2]
[352702812,1739256633032,-959.02,0.00010958,2]
[352702813,1739256633042,-500.0,0.00010958,2]
[352702814,1739256633051,-500.0,0.00010958,2]
[352702815,1739256633062,-500.0,0.00010958,2]
[352702816,1739256633071,-500.0,0.00010958,2]
[352702817,1739256633081,-366.28015909,0.00010958,2]
[352702818,1739256633091,-500.0,0.00010958,2]
[352702819,1739256633101,-640.45,0.00010958,2]
[352702820,1739256633110,-500.0,0.00010958,2]
[352702821,1739256633120,-500.0,0.00010958,2]
[352702822,1739256633130,-500.0,0.00010958,2]
[352702823,1739256633140,-500.0,0.00010958,2]
[352702824,1739256633150,-507.47859958,0.00010958,2]
[352702825,1739256633159,-999.0,0.00010958,2]
[352702826,1739256633169,-999.0,0.00010958,2]
[352702827,1739256633179,-999.0,0.00010958,2]
[352702828,1739256633188,-999.0,0.00010958,2]
[352702829,1739256633198,-999.0,0.00010958,2]
[352702830,1739256633207,-999.0,0.00010958,2]
[352702831,1739256633217,-999.0,0.00010958,2]
[352702832,1739256633226,-999.0,0.00010958,2]
[352702833,1739256633235,-999.0,0.00010958,2]
[352702834,1739256633245,-999.0,0.00010958,2]
[352702835,1739256633254,-999.0,0.00010958,2]
[352702836,1739256633264,-999.0,0.00010958,2]
[352702837,1739256633274,-999.0,0.00010958,2]
[352702838,1739256633283,-999.0,0.00010958,2]
[352702839,1739256633294,-999.0,0.00010958,2]
[352702840,1739256633306,-999.0,0.00010958,2]
[352702841,1739256633316,-999.0,0.00010958,2]
[352702842,1739256633325,-999.0,0.00010958,2]
[352702843,1739256633335,-999.0,0.00010958,2]
[352702844,1739256633344,-1021.72301266,0.00010958,2]
[352702845,1739256633353,-565.56,0.00010958,2]
[352702846,1739256633363,-500.0,0.00010958,2]
[352702847,1739256633373,-511.17,0.00010958,2]
[352702848,1739256633383,-572.72,0.00010958,2]
[352702849,1739256633397,-500.0,0.00010958,2]
[352702850,1739256633407,-500.0,0.00010958,2]
[352702851,1739256633416,-500.0,0.00010958,2]
[352702852,1739256633426,-500.0,0.00010958,2]
[352702853,1739256633435,-500.0,0.00010958,2]
[352702854,1739256633445,-500.0,0.00010958,2]
[352702855,1739256633454,-500.0,0.00010958,2]
[352702856,1739256633463,-500.0,0.00010958,2]
[352702857,1739256633473,-500.0,0.00010958,2]
[352702858,1739256633482,-500.0,0.00010958,2]
[352702859,1739256633491,-500.0,0.00010958,2]
[352702860,1739256633500,-500.0,0.00010958,2]
[352702861,1739256633509,-500.0,0.00010958,2]
[352702862,1739256633519,-500.0,0.00010958,2]
[352702863,1739256633528,-630.89,0.00010958,2]
[352702864,1739256633537,-500.0,0.00010958,2]
[352702865,1739256633546,-500.0,0.00010958,2]
[352702866,1739256633555,-500.0,0.00010958,2]
[352702867,1739256633565,-500.0,0.00010958,2]
[352702868,1739256633574,-500.0,0.00010958,2]
[352702869,1739256633584,-500.0,0.00010958,2]
[352702870,1739256633594,-1323.72,0.00010958,2]
[352702871,1739256633603,-500.0,0.00010958,2]
[352702872,1739256633613,-500.0,0.00010958,2]
[352702873,1739256633623,-544.67,0.00010958,2]
[352702874,1739256633632,-2777.3,0.00010958,2]
[352702875,1739256633641,-500.0,0.00010958,2]
[352702876,1739256633652,-500.0,0.00010958,2]
[352702877,1739256633662,-1163.71,0.00010958,2]
[352702878,1739256633672,-659.93,0.00010958,2]
[352702879,1739256633684,-1349.85,0.00010958,2]
[352702880,1739256633693,-774.17,0.00010958,2]
[352702881,1739256633703,-1065.27,0.00010958,2]
[352702882,1739256633713,-1000.0,0.00010958,2]
[352702883,1739256633724,-500.0,0.00010958,2]
[352702884,1739256633733,-1196.98,0.00010958,2]
[352702885,1739256633742,-508.16140318,0.00010958,2]
[352702886,1739256633752,-500.0,0.00010958,2]
[352702887,1739256633762,-500.0,0.00010958,2]
[352702888,1739256633774,-1537.1,0.00010958,2]
[352702889,1739256633783,-500.0,0.00010958,2]
[352702890,1739256633793,-1837.17,0.00010958,2]
[352702891,1739256633802,-500.0,0.00010958,2]
[352702892,1739256633811,-834.97,0.00010958,2]
[352702893,1739256633821,-500.0,0.00010958,2]
[352702894,1739256633831,-500.0,0.00010958,2]
[352702895,1739256633840,-500.0,0.00010958,2]
[352702896,1739256633849,-669.28,0.00010958,2]
[352702897,1739256633859,-598.13,0.00010958,2]
[352702898,1739256633869,-500.0,0.00010958,2]
[352702899,1739256633878,-500.0,0.00010958,2]
[352702900,1739256633888,-799.58,0.00010958,2]
[352702901,1739256633900,-800.52,0.00010958,2]
[352702902,1739256633911,-788.41,0.00010958,2]
[352702903,1739256633920,-849.35,0.00010958,2]
[352702904,1739256633931,-578.73,0.00010958,2]
[352702905,1739256633942,-500.0,0.00010958,2]
[352702906,1739256633952,-565.65,0.00010959,2]
[352702907,1739256633962,-6026.0,0.00011,2]
[352702908,1739256633971,-431.7357272,0.0001107,2]
[352702909,1739256633980,-1000.0,0.00011081,2]
[352702910,1739256633990,-166.63,0.00011088,2]
[352702911,1739256634000,-2587.226,0.00011089,2]
[352702912,1739256634009,-500.0,0.00011092,2]
[352702913,1739256634019,-500.0,0.00011092,2]
[352702914,1739256634028,-658.88,0.00011092,2]
[352702915,1739256634037,-2573.31,0.00011092,2]
[352702916,1739256634047,-1809.24,0.00011092,2]
[352702917,1739256634056,-623.279359,0.00011092,2]
[352702918,1739256634066,-500.0,0.00011092,2]
[352702919,1739256634075,-974.03,0.00011092,2]
[352702920,1739256634084,-1158.19,0.00011092,2]
[352702921,1739256634094,-679.751589,0.00011092,2]
[352702922,1739256634103,-758.82,0.00011092,2]
[352702923,1739256634112,-1444.09,0.00011092,2]
[352702924,1739256634122,-500.0,0.00011092,2]
[352702925,1739256634131,-500.0,0.00011092,2]
[352702926,1739256634141,-1389.32,0.00011092,2]
[352702927,1739256634150,-730.21,0.00011092,2]
[352702928,1739256634159,-500.0,0.00011092,2]
[352702929,1739256634168,-1438.42,0.00011092,2]
[352702930,1739256634178,-500.0,0.00011092,2]
[352702931,1739256634187,-1244.9,0.00011092,2]
[352702932,1739256634196,-627.66,0.00011092,2]
[352702933,1739256634206,-1074.24,0.00011092,2]
[352702934,1739256634215,-500.0,0.00011092,2]
[352702935,1739256634225,-1290.17,0.00011092,2]
[352702936,1739256634234,-925.63,0.00011092,2]
[352702937,1739256634243,-500.0,0.00011092,2]
[352702938,1739256634252,-1899.45,0.00011092,2]
[352702939,1739256634261,-500.0,0.00011092,2]
[352702940,1739256634270,-2272.64,0.00011092,2]
[352702941,1739256634280,-893.41,0.00011092,2]
[352702942,1739256634290,-2267.95,0.00011092,2]
[352702943,1739256634299,-1106.55,0.00011092,2]
[352702944,1739256634308,-990.86,0.00011092,2]
[352702945,1739256634318,-1297.8,0.00011092,2]
[352702946,1739256634327,-1916.57,0.00011092,2]
[352702947,1739256634337,-1586.65,0.00011092,2]
[352702948,1739256634346,-1548.08,0.00011092,2]
[352702949,1739256634355,-574.92,0.00011092,2]
[352702950,1739256634363,-5302.17,0.00011092,2]
[352702951,1739256634372,-1914.5,0.00011092,2]
[352702952,1739256634381,-2010.92,0.00011092,2]
[352702953,1739256634391,-1512.97,0.00011092,2]
[352702954,1739256634401,-500.0,0.00011092,2]
[352702955,1739256634410,-2528.13,0.00011092,2]
[352702956,1739256634419,-1261.27,0.00011092,2]
[352702957,1739256634428,-2590.74,0.00011092,2]
[352702958,1739256634437,-1090.46,0.00011092,2]
[352702959,1739256634446,-3859.16,0.00011092,2]
[352702960,1739256634455,-2165.26,0.00011092,2]
[352702961,1739256634464,-1666.03,0.00011092,2]
[352702962,1739256634474,-1042.87,0.00011092,2]
[352702963,1739256634483,-500.0,0.00011092,2]
[352702964,1739256634492,-1801.69,0.00011092,2]
[352702965,1739256634502,-500.0,0.00011092,2]
[352702966,1739256634511,-2894.11,0.00011092,2]
[352702967,1739256634519,-2294.76,0.00011092,2]
[352702968,1739256634528,-1062.27,0.00011092,2]
[352702969,1739256634538,-1706.6,0.00011092,2]
[352702970,1739256634547,-755.16,0.00011092,2]
[352702971,1739256634556,-500.0,0.00011092,2]
[352702972,1739256634566,-548.88,0.00011092,2]
[352702973,1739256634575,-1095.38,0.00011092,2]
[352702974,1739256634584,-500.0,0.00011092,2]
[352702975,1739256634594,-1127.78,0.00011092,2]
[352702976,1739256634603,-500.0,0.00011092,2]
[352702977,1739256634612,-500.0,0.00011092,2]
[352702978,1739256634621,-762.7,0.00011092,2]
[352702979,1739256634630,-607.06,0.00011093,2]
[352702980,1739256634640,-500.0,0.00011093,2]
[352702981,1739256634649,-500.0,0.00011093,2]
[352702982,1739256634660,-858.21,0.00011093,2]
[352702983,1739256634670,-500.0,0.00011093,2]
[352702984,1739256634679,-725.13,0.00011093,2]
[352702985,1739256634691,-781.16,0.00011093,2]
[352702986,1739256634700,-500.0,0.00011093,2]
[352702987,1739256634710,-591.43,0.00011093,2]
[352702988,1739256634719,-670.81,0.00011093,2]
[352702989,1739256634729,-749.55,0.00011093,2]
[352702990,1739256634738,-500.0,0.00011093,2]
[352702991,1739256634748,-731.98,0.00011093,2]
[352702992,1739256634757,-500.0,0.00011093,2]
[352702993,1739256634766,-831.08,0.00011093,2]
[352702994,1739256634776,-825.53,0.00011093,2]
[352702995,1739256634785,-500.0,0.00011093,2]
[352702996,1739256634794,-500.0,0.00011093,2]
[352702997,1739256634803,-543.27,0.00011093,2]
[352702998,1739256634812,-500.0,0.00011093,2]
[352702999,1739256634821,-505.31,0.00011093,2]
[352703000,1739256634831,-722.81,0.00011093,2]
[352703001,1739256634840,-951.01,0.00011093,2]
[352703002,1739256634849,-579.63,0.00011093,2]
[352703003,1739256634859,-903.23,0.00011093,2]
[352703004,1739256634868,-573.98,0.00011093,2]
[352703005,1739256634878,-747.88,0.00011093,2]
[352703006,1739256634887,-791.14,0.00011093,2]
[352703007,1739256634896,-162.36368087,0.00011093,2]
[352703008,1739256634909,-500.0,0.00011093,2]
[352703009,1739256634918,-690.68,0.00011093,2]
[352703010,1739256634927,-500.0,0.00011093,2]
[352703011,1739256634937,-1376.28,0.00011093,2]
[352703012,1739256634946,-606.91,0.00011093,2]
[352703013,1739256634955,-500.0,0.00011093,2]
[352703014,1739256634964,-500.0,0.00011093,2]
[352703015,1739256634973,-1731.4,0.00011093,2]
[352703016,1739256634982,-637.22,0.00011093,2]
[352703017,1739256634992,-1615.48,0.00011093,2]
[352703018,1739256635001,-1056.25,0.00011093,2]
[352703019,1739256635011,-1676.33,0.00011093,2]
[352703020,1739256635020,-940.72,0.00011093,2]
[352703021,1739256635029,-500.0,0.00011093,2]
[352703022,1739256635038,-1882.68,0.00011093,2]
[352703023,1739256635047,-3671.59,0.00011093,2]
[352703024,1739256635056,-945.34,0.00011093,2]
[352703025,1739256635065,-500.0,0.00011093,2]
[352703026,1739256635074,-1423.08,0.00011093,2]
[352703027,1739256635083,-656.83,0.00011093,2]
[352703028,1739256635093,-2844.91,0.00011093,2]
[352703029,1739256635102,-2009.78,0.00011093,2]
[352703030,1739256635112,-2056.34,0.00011093,2]
[352703031,1739256635121,-500.0,0.00011093,2]
[352703032,1739256635131,-2463.44,0.00011093,2]
[352703033,1739256635140,-500.0,0.00011093,2]
[352703034,1739256635148,-842.61,0.00011093,2]
[352703035,1739256635160,-500.0,0.00011093,2]
[352703036,1739256635169,-819.11,0.00011093,2]
[352703037,1739256635178,-1701.42,0.00011093,2]
[352703038,1739256635187,-549.69,0.00011093,2]
[352703039,1739256635196,-1885.64,0.00011093,2]
[352703040,1739256635206,-675.58,0.00011093,2]
[352703041,1739256635215,-2630.55,0.00011093,2]
[352703042,1739256635224,-568.67,0.00011093,2]
[352703043,1739256635233,-500.0,0.00011094,2]
[352703044,1739256635243,-1256.18,0.00011094,2]
[352703045,1739256635252,-1235.83,0.00011094,2]
[352703046,1739256635261,-684.71,0.00011094,2]
[352703047,1739256635271,-1220.93467997,0.00011094,2]
[352703048,1739256635286,-1204.76532003,0.00011094,2]
[352703049,1739256635295,-766.44,0.00011094,2]
[352703050,1739256635304,-2626.67,0.00011094,2]
[352703051,1739256635314,-500.0,0.00011094,2]
[352703052,1739256635323,-996.35,0.00011094,2]
[352703053,1739256635333,-617.36,0.00011094,2]
[352703054,1739256635342,-500.0,0.00011094,2]
[352703055,1739256635351,-1372.56,0.00011094,2]
[352703056,1739256635360,-979.49,0.00011094,2]
[352703057,1739256635369,-601.68,0.00011094,2]
[352703058,1739256635379,-1625.77,0.00011094,2]
[352703059,1739256635388,-1831.95,0.00011094,2]
[352703060,1739256635398,-1965.4,0.00011094,2]
[352703061,1739256635409,-3461.61,0.00011094,2]
[352703062,1739256635418,-5792.15,0.00011094,2]
[352703063,1739256635427,-815.6,0.00011094,2]
[352703064,1739256635436,-1582.51,0.00011094,2]
[352703065,1739256635445,-500.0,0.00011095,2]
[352703066,1739256635454,-500.0,0.00011095,2]
[352703067,1739256635464,-500.0,0.00011095,2]
[352703068,1739256635473,-500.0,0.00011095,2]
[352703069,1739256635482,-500.0,0.00011095,2]
[352703070,1739256635491,-500.0,0.00011095,2]
[352703071,1739256635500,-500.0,0.00011095,2]
[352703072,1739256635510,-500.0,0.00011095,2]
[352703073,1739256635519,-500.0,0.00011095,2]
[352703074,1739256635528,-500.0,0.00011095,2]
[352703075,1739256635538,-500.0,0.00011095,2]
[352703076,1739256635547,-500.0,0.00011095,2]
[352703077,1739256635556,-1044.26,0.00011095,2]
[352703078,1739256635565,-883.66,0.00011095,2]
[352703079,1739256635575,-763.89,0.00011095,2]
[352703080,1739256635584,-500.0,0.00011095,2]
[352703081,1739256635593,-500.0,0.00011095,2]
[352703082,1739256635603,-594.24,0.00011095,2]
[352703083,1739256635612,-896.62,0.00011095,2]
[352703084,1739256635621,-500.0,0.00011095,2]
[352703085,1739256635630,-500.0,0.00011095,7]
[352703086,1739256635639,-500.0,0.00011095,2]
[352703087,1739256635649,-500.0,0.00011095,2]
[352703088,1739256635659,-959.02,0.00011095,2]
[352703089,1739256635668,-500.0,0.00011095,2]
[352703090,1739256635677,-500.0,0.00011095,2]
[352703091,1739256635689,-640.45,0.00011095,2]
[352703092,1739256635698,-500.0,0.00011095,2]
[352703093,1739256635707,-500.0,0.00011095,2]
[352703094,1739256635716,-500.0,0.00011095,2]
[352703095,1739256635726,-497.37823703,0.00011095,2]
[352703096,1739256635735,-565.56,0.00011095,2]
[352703097,1739256635744,-500.0,0.00011095,2]
[352703098,1739256635754,-511.17,0.00011095,2]
[352703099,1739256635763,-572.72,0.00011095,2]
[352703100,1739256635772,-500.0,0.00011095,2]
[352703101,1739256635782,-500.0,0.00011095,2]
[352703102,1739256635790,-500.0,0.00011095,2]
[352703103,1739256635799,-500.0,0.00011095,2]
[352703104,1739256635809,-500.0,0.00011095,2]
[352703105,1739256635818,-500.0,0.00011095,2]
[352703106,1739256635827,-171.64289345,0.00011095,2]
[352703107,1739256635836,-500.0,0.00011095,2]
[352703108,1739256635846,-500.0,0.00011095,2]
[352703109,1739256635855,-500.0,0.00011095,2]
[352703110,1739256635864,-500.0,0.00011095,2]
[352703111,1739256635873,-500.0,0.00011095,2]
[352703112,1739256635883,-500.0,0.00011095,2]
[352703113,1739256635892,-630.89,0.00011095,2]
[352703114,1739256635902,-500.0,0.00011095,2]
[352703115,1739256635912,-500.0,0.00011095,2]
[352703116,1739256635921,-500.0,0.00011095,2]
[352703117,1739256635931,-500.0,0.00011095,2]
[352703118,1739256635940,-1323.72,0.00011095,2]
[352703119,1739256635949,-500.0,0.00011095,2]
[352703120,1739256635959,-500.0,0.00011095,2]
[352703121,1739256635968,-544.67,0.00011095,2]
[352703122,1739256635977,-2777.3,0.00011095,2]
[352703123,1739256635986,-500.0,0.00011095,2]
[352703124,1739256635995,-500.0,0.00011095,2]
[352703125,1739256636004,-1163.71,0.00011095,2]
[352703126,1739256636014,-659.93,0.00011095,2]
[352703127,1739256636023,-1349.85,0.00011095,2]
[352703128,1739256636032,-774.17,0.00011095,2]
[352703129,1739256636041,-1065.27,0.00011095,2]
[352703130,1739256636050,-1000.0,0.00011095,2]
[352703131,1739256636059,-500.0,0.00011095,2]
[352703132,1739256636068,-1196.98,0.00011095,2]
[352703133,1739256636077,-500.0,0.00011095,2]
[352703134,1739256636087,-500.0,0.00011095,2]
[352703135,1739256636096,-1537.1,0.00011095,2]
[352703136,1739256636105,-500.0,0.00011095,2]
[352703137,1739256636114,-1837.17,0.00011095,2]
[352703138,1739256636124,-500.0,0.00011095,2]
[352703139,1739256636134,-834.97,0.00011095,2]
[352703140,1739256636143,-500.0,0.00011095,2]
[352703141,1739256636153,-500.0,0.00011095,2]
[352703142,1739256636162,-500.0,0.00011095,2]
[352703143,1739256636171,-669.28,0.00011095,2]
[352703144,1739256636180,-598.13,0.00011095,2]
[352703145,1739256636189,-500.0,0.00011095,2]
[352703146,1739256636198,-500.0,0.00011095,2]
[352703147,1739256636207,-799.58,0.00011095,2]
[352703148,1739256636217,-800.52,0.00011095,2]
[352703149,1739256636226,-788.41,0.00011095,2]
[352703150,1739256636235,-849.35,0.00011095,2]
[352703151,1739256636244,-578.73,0.00011095,2]
[352703152,1739256636254,-500.0,0.00011095,2]
[352703153,1739256636263,-438.84,0.00011096,2]
[352703154,1739256636272,-150.0,0.00011096,2]
[352703155,1739256636282,-150.0,0.00011096,2]
[352703156,1739256636291,-150.0,0.00011096,2]
[352703157,1739256636300,-153.61,0.00011096,2]
[352703158,1739256636309,-150.0,0.00011096,2]
[352703159,1739256636318,-150.0,0.00011096,2]
[352703160,1739256636328,-150.0,0.00011096,2]
[352703161,1739256636337,-150.0,0.00011096,2]
[352703162,1739256636347,-438.84,0.00011096,2]
[352703163,1739256636356,-438.84,0.00011096,2]
[352703164,1739256636365,-150.0,0.00011096,2]
[352703165,1739256636374,-150.0,0.00011096,2]
[352703166,1739256636548,-150.0,0.00011096,2]
[352703167,1739256636559,-150.0,0.00011096,2]
[352703168,1739256636570,-150.0,0.00011096,2]
[352703169,1739256636579,-150.0,0.00011096,2]
[352703170,1739256636589,-150.0,0.00011096,2]
[352703171,1739256636599,-438.84,0.00011096,2]
[352703172,1739256636609,-150.0,0.00011096,2]
[352703173,1739256636619,-150.0,0.00011096,2]
[352703174,1739256636629,-438.84,0.00011096,2]
[352703175,1739256636638,-150.0,0.00011096,2]
[352703176,1739256636647,-150.0,0.00011096,2]
[352703177,1739256636659,-150.66,0.00011096,2]